Workbook

Sheet بدلات
C1: =18+17 -> 35
A2: بيـــان بـــدل الاجــــازة المستحـــق لموظفـــي شركة منور لتحصيل الاموال حتى 2018/12/31م
A3: م | B3: الاســـــــــم | C3: الوظيفة | D3: تاريخ التعين | E3: عن الفترة | G3: عدد ايام العمل | H3: يطرح منها الاجازات غير مدفوعة الاجر | I3: صافي ايام العمل | J3: الاجازات مدفوعة الاجر | K3: الراتب المحسوب عليه | L3: المبلغ المستحق | M3: ايام عمل لم تصرف | N3: رصيد ذمم | O3: صافي المستحق
E4: مــــن | F4: إلـــــي
A5: 1 | B5: مصعب الرفاعي | C5: المدير العام | D5: 2012-11-01 | F5: 2018-12-31 | G5: 360 | H5: 0 | I5: =G5-H5 -> 360 | J5: 0 | K5: 1000 | L5: =((I5*30/360)-J5)*K5/26 -> 1153.846154 | M5: 0 | N5: 0 | O5: =L5+M5-N5 -> 1153.846154
A6: 2 | B6: احمد سليمان | C6: رئيس قسم | D6: 2012-09-24 | E6: 2018-09-18 | F6: 2018-12-31 | G6: 76 | H6: 0 | I6: 76 | J6: 0 | K6: 330 | L6: 80.38461538 | M6: 0 | N6: 0 | O6: =L6+M6-N6 -> 80.38461538
A7: 3 | B7: محمود أبو الحجاج | C7: مسئول تحصيل | D7: 2014-05-04 | E7: 2018-12-19 | F7: 2018-12-31 | G7: 62 | H7: 0 | I7: =G7-H7 -> 62 | J7: 0 | K7: 224 | L7: =((I7*30/360)-J7)*K7/26 -> 44.51282051 | M7: 0 | N7: 0 | O7: =L7+M7-N7 -> 44.51282051
A8: 4 | B8: احمد مجاهد | C8: مسئول تحصيل | D8: 2014-04-23 | E8: 2018-11-14 | F8: 2018-12-31 | G8: 90 | H8: 0 | I8: 90 | J8: 0 | K8: 250 | L8: 72.11538462 | M8: 0 | N8: 0 | O8: 72.11538462
A9: 5 | B9: مصطفى مخلوف | C9: مسئول تحصيل | D9: 2013-10-01 | E9: 2018-08-24 | F9: 2018-12-31 | G9: 7 | H9: 0 | I9: 7 | J9: 0 | K9: 267 | L9: 5.990384615 | M9: 0 | N9: 0 | O9: 5.990384615
A10: 6 | B10: محمود نوير | C10: معقب قضايا | D10: 2013-09-01 | E10: 2018-09-12 | F10: 2018-12-31 | G10: 360 | H10: 0 | I10: 360 | J10: 0 | K10: 292 | L10: 336.9230769 | M10: 0 | N10: 0 | O10: 336.9230769
A11: 7 | B11: عصام فتحي | C11: معقب قضايا | D11: 2012-09-18 | E11: 2018-10-06 | F11: 2018-12-31 | G11: 124 | H11: 0 | I11: 124 | J11: 0 | K11: 297 | L11: 118.0384615 | M11: 0 | N11: 0 | O11: 118.0384615
A12: 8 | B12: ماري صبحي صادق | C12: مسئول تحصيل | D12: 2013-11-16 | E12: 2018-06-21 | F12: 2018-12-31 | G12: 9 | H12: 0 | I12: 9 | J12: 0 | K12: 248 | L12: 7.153846154 | M12: 0 | N12: 0 | O12: 7.153846154
A13: 9 | B13: مروة عيد | C13: مسئول تحصيل | D13: 2014-03-09 | E13: 2018-10-25 | F13: 2018-12-31 | G13: 69 | H13: 0 | I13: 69 | J13: 0 | K13: 240 | L13: 53.07692308 | M13: 0 | N13: 0 | O13: 53.07692308
A14: 10 | B14: اماني احمد مطاوع | C14: مسئول تحصيل | D14: 2014-04-27 | E14: 2018-05-26 | F14: 2018-12-31 | G14: 147 | H14: 0 | I14: 147 | J14: 0 | K14: 265 | L14: 124.8557692 | M14: 0 | N14: 0 | O14: 124.8557692
A15: 11 | B15: محمود ابو المجد | C15: مسئول تحصيل | D15: 2014-04-02 | F15: 2018-12-31 | G15: 28 | H15: 0 | I15: 28 | J15: 0 | K15: 200 | L15: 17.94871795 | M15: 0 | N15: 0 | O15: 17.94871795
A16: 12 | B16: اسلام صلاح | C16: مدخل بيانات | D16: 2018-02-27 | E16: 2018-12-31 | F16: 2018-12-31 | G16: 360 | H16: 0 | I16: 360 | J16: 0 | K16: 220 | L16: 253.8461538 | M16: 0 | N16: 0 | O16: 253.8461538
A17: 13 | B17: حنان مجيد | C17: مسئول تحصيل | D17: 2015-09-07 | F17: 2018-12-31 | G17: 90 | H17: 0 | I17: =G17-H17 -> 90 | J17: 0 | K17: 208 | L17: =((I17*30/360)-J17)*K17/26 -> 60 | M17: 0 | N17: 0 | O17: =L17+M17-N17 -> 60
A18: 14 | B18: رضا حسن ساير | C18: محصل خارجي | D18: 2013-10-01 | F18: 2018-12-31 | G18: 292 | H18: 0 | I18: =G18-H18 -> 292 | J18: 0 | K18: 240 | L18: =((I18*30/360)-J18)*K18/26 -> 224.6153846 | M18: 0 | N18: 0 | O18: =L18+M18-N18 -> 224.6153846
A19: 15 | B19: غادة عيد | C19: مسئول تحصيل | D19: 2016-11-13 | E19: 2018-04-25 | F19: 2018-12-31 | G19: 292 | H19: 0 | I19: =G19-H19 -> 292 | J19: 0 | K19: 200 | L19: =((I19*30/360)-J19)*K19/26 -> 187.1794872 | M19: 0 | N19: 0 | O19: =L19+M19-N19 -> 187.1794872
A20: 16 | B20: محمد توفيق | C20: مسئول تحصيل | D20: 2016-08-14 | F20: 2018-12-31 | G20: 130 | H20: 0 | I20: 130 | J20: 0 | K20: 209 | L20: 87.08333333 | M20: 0 | N20: 0 | O20: 87.08333333
A21: 17 | B21: ايمن محمد | C21: محاسب | E21: 2018-01-01 | K21: 150 | L21: =((I21*30/360)-J21)*K21/26 -> 0 | M21: 0 | N21: 0 | O21: =L21+M21-N21 -> 0
A22: 18 | B22: مجتبي شاوردي | C22: مسئول تحصيل | D22: 2016-10-24 | E22: 2018-10-13 | F22: 2018-12-31 | G22: 292 | H22: 0 | I22: =G22-H22 -> 292 | J22: 0 | K22: 200 | L22: =((I22*30/360)-J22)*K22/26 -> 187.1794872 | M22: 0 | N22: 0 | O22: =L22+M22-N22 -> 187.1794872
A23: 19 | B23: محمد جمال | C23: معقب قضايا | D23: 2018-02-18 | E23: 2018-06-01 | F23: 2018-12-31 | G23: 107 | H23: 0 | I23: =G23-H23 -> 107 | J23: 0 | K23: 287 | L23: =((I23*30/360)-J23)*K23/26 -> 98.42628205 | M23: 60.666 | N23: 0 | O23: =L23+M23-N23 -> 159.0922821
A24: 20 | B24: اسماء السعيد | C24: مسئول تحصيل | D24: 2017-10-15 | F24: 2018-12-31 | G24: 116 | H24: 0 | I24: 116 | J24: 0 | K24: 232 | L24: 86.25641026 | M24: 0 | N24: 0 | O24: 86.25641026
A25: 21 | B25: أحمد عطا | C25: مسئول تحصيل | D25: 2013-08-22 | E25: 2018-10-09 | F25: 2018-12-31 | G25: 94 | H25: 0 | I25: 94 | J25: 0 | K25: 225 | L25: 67.78846154 | M25: 0 | N25: 0 | O25: 67.78846154
A26: 22 | B26: محمود ابو المجد | C26: مسئول تحصيل | D26: 2017-10-01 | F26: 2018-12-31 | G26: 118 | H26: 0 | I26: 118 | J26: 0 | K26: 200 | L26: 75.64102564 | M26: 0 | N26: 0 | O26: 75.64102564
A27: 23 | B27: زينب الرفاعي | C27: مسئول تحصيل | D27: 2015-10-27 | F27: 2018-12-31 | G27: 90 | H27: 0 | I27: 90 | J27: 0 | K27: 200 | L27: 57.69230769 | M27: 0 | N27: 0 | O27: 57.69230769
A28: 24 | B28: شدوي امبادر | C28: مسئول تحصيل | D28: 2017-10-01 | F28: 2018-12-31 | G28: 292 | H28: 0 | I28: =G28-H28 -> 292 | J28: 0 | K28: 200 | L28: 187.1794872 | M28: 0 | N28: 0 | O28: 187.1794872
A29: 25 | B29: جمال حيدر | C29: مسئول تحصيل | D29: 2016-03-10 | E29: 2018-02-06 | F29: 2018-12-31 | G29: 292 | H29: 0 | I29: =G29-H29 -> 292 | J29: 0 | K29: 200 | L29: 187.1794872 | M29: 0 | N29: 0 | O29: 187.1794872
A30: 26 | B30: محمد عزت | C30: مسئول تحصيل | D30: 2007-01-06 | E30: 4/3/20183 | F30: 2018-12-31 | G30: 292 | H30: 0 | I30: =G30-H30 -> 292 | J30: 0 | K30: 200 | L30: 187.1794872 | M30: 0 | N30: 0 | O30: 187.1794872
A31: 27 | B31: احمد السعيد | C31: مسئول تحصيل | D31: 2017-03-05 | E31: 2018-12-06 | F31: 2019-01-01 | K31: 207
A32: 28 | B32: خالد نجم | C32: رئيس قسم | D32: 2016-04-02 | E32: 2018-01-01 | F32: 2018-12-31 | G32: 292 | H32: 0 | I32: =G32-H32 -> 292 | J32: 0 | K32: 360 | L32: 336.9230769 | M32: 0 | N32: 0 | O32: 336.9230769
A33: 29 | B33: محمد دياب | C33: مسؤول تنفيذ | D33: 2016-06-01 | F33: 2018-12-31 | G33: 292 | H33: 0 | I33: 292 | J33: 0 | K33: 220 | L33: 205.8974359 | M33: 0 | N33: 0 | O33: 205.8974359
A34: 30 | B34: محمود مجدي | C34: مسؤول تنفيذ | G34: 292 | H34: 0 | I34: =G34-H34 -> 292 | J34: 0 | K34: 220 | L34: 205.8974359
A35: 31 | B35: شريف السيد | C35: مسؤول تنفيذ | D35: 2016-08-14 | F35: 2018-12-31 | G35: 292 | H35: 0 | I35: 292 | J35: 0 | K35: 220 | L35: 205.8974359 | M35: 0 | N35: 0 | O35: 205.8974359
A36: 32 | B36: اخير زما كبير | C36: فراش | D36: 2016-08-14 | F36: 2018-12-31 | G36: 292 | H36: 0 | I36: =G36-H36 -> 292 | J36: 0 | K36: 150 | L36: =((I36*30/360)-J36)*K36/26 -> 140.3846154 | M36: 0 | N36: 0 | O36: =L36+M36-N36 -> 140.3846154
A37: total | L37: =SUM(L5:L35) -> 4916.708333 | M37: =SUM(M5:M35) -> 60.666 | N37: =SUM(N5:N35) -> 0 | O37: =SUM(O5:O35) -> 4771.476897
B39: الحسابات | E39: المدير العام | H39: المدير التنفيذي
A40: طبقا لقانون العمل فللعامل الحق في اجازة سنوية مدفوعة الأجر مدتها ثلاثون يوما. ولا يستحق العامل اجازة عن السنة الأولى الا بعد قضائه تسعة أشهر على الأقل في خدمة صاحب العمل ولا تحسب ضمن الاجازة السنوية ايام العطل الرسمية وأيام الاجازات المرضية الواقعة خلالها ويستحق العامل اجازة عن كسور السنة بنسبة ما قضاه منها في العمل ولو كانت السنة الاولى من الخدمة.

Sheet ورقة2
B1: شركة العالمية لتحصيل الاموال بصفة ودية
D3: مخالصة وبراءة ذمة | Q3: ارجو المساعده في عمل كود لحساب بدل الاجازه كما هو مبين بالمثال المرفق مع الاخد في الاعتبار انه يتم حساب البدل على أساس الشهر 30 يوم والسنة 360 يوم ويتم حساب البدل عن كل سنة لوحدها كما هو مبين بالمثال المرفق فيتم حساب الفرق بين تاريخ بداية العمل وتاريخ نهاية العمل وكتابه الفرق في المربع الاخضر ويتم حساب راتب عن الشهر الاخير في العمل من بدايه الشهر حتى تاريخ العمل كما هو مبين باللون الازرق وتم حسابه كالتالي الراتب على 30 في عدد ايام الشهر الاخير 150 / 30 * 23 = 130 ويتم حساب البدل من بدايه العمل حتى نهاية السنة ومن بدايه السنة حتى نهاية العمل كما هو مبين باللون الاورانج فتم حساب البدل كالتالي مع ملاحظه ان عند حساب البدل يتم حساب اليوم بقسمة الراتب على 26 يوم كالتالي بدل الاجازه عن الفترة من 17-9-2017 وإلى 31-12-2017 هو فيكون الفرق بين التاريخين 3 شهور و 16 يوم فيكون اجمالي عدد ايام العمل 106 يوم فيكون عدد الايام المستحقه للبدل 1.6 * 30 / 360 = 8.8 يوم ولحساب البدل نقدي يكون الراتب على 30 في عدد ايام البدل 150 / 26 * 8.8 = 50.8 وتقريب النتيجه لرقم صحيح يكون البدل عن تلك الفتره 51 دينار والبدل عن السنة كاملة يكون اجمالي الراتب 150 دينار ويتم حساب البدل عن الفترة التالته وهي بدايه السنة وحتى تاريخ اخر يوم عمل بنفس الطريقة ارجو ان اكون قد شرحت ما يفيد عمل الكود وانا عارفه ان الكود طويل ومعقد فا ياريت تساعدوني وجزاكم الله خير
B5: الاســـــــــــــم | C5: محمد احمد
B6: الوظيفه | C6: مسئول تحصيل
B7: الراتب الشهرى | C7: 150 د.ك
B8: بداية العمل | C8: 17/09/2017 | G8: صافى مدة الخدمه | I8: =Ali_Sm(C8,C9,"d") -> 6 | J8: يوم | K8: =Ali_Sm(C8,C9,"m") -> 2 | L8: شهر | M8: =Ali_Sm(C8,C9,"y") -> 2 | N8: سنة
B9: نهاية العمل | C9: 23/11/2019
B10: الاجازه السنويه | C10: شهر
B15: المبلغ | D15: التفاصيــــــــــــــــــــــــــــــــــــــــــــــــــــــــــــــــــــــــــــــــــل
B16: فلس | C16: دينار
B17: 0 | C17: 130 | D17: الراتب المستحق | F17: عن الفتره من | G17: =C9-DAY(C9)+1 -> 2019-11-01 | H17: إلى | I17: =C9 -> 23/11/2019 | M17: =Ali_Sm(G17,I17,"d")+1 -> 23 | N17: يوم
B18: 0 | C18: 51 | D18: بــــدل اجــــازه | F18: عن الفترة من | G18: =C8 -> 17/09/2017 | H18: إلى | I18: =DATE(YEAR(G18),12,31) -> 2017-12-31 | M18: =ROUNDUP(Ali_Sm(G18,I18,"dd")/30*2.5,0) -> 9 | N18: يوم
B19: 0 | C19: 150 | D19: بــــدل اجــــازه | F19: عن الفترة من | G19: 2018-01-01 | H19: إلى | I19: 2018-12-31 | M19: =Ali_Sm(G19,I19,"dd")/30*2.5 -> 30 | N19: يوم
B20: 0 | C20: 155 | D20: بــــدل اجــــازه | F20: عن الفترة من | G20: 2019-01-01 | H20: إلى | I20: =C9 -> 23/11/2019 | M20: =Ali_Sm(G20,I20,"dd")/30*2.5 -> 26.83333333 | N20: يوم
B21: 0 | C21: 0 | D21: مكافأة
B22: =SUM(B17:B21) -> 0 | C22: 486 | D22: اجمالى الاستحقاق
B23: 0 | C23: 0 | D23: استقطاعات
B24: 0 | C24: 0 | D24: الرصيد المدين بالذمم
B25: 0 | C25: 0 | D25: عهده مستديمه
B26: =B22-B23-B24-B25 -> 0 | C26: 488 | D26: صافى الاستحقاق فقط ستمائة وأثنان دينار و 000 فلسا لاغير
B28: المحاسب | F28: المدير العام | K28: الرئيس التنفيذي
B31: اقرار وتعهد
B33: أقر أنا الموقع ادناه / محمد احمد بأننى قد استلمت كافة حقوقي من رواتب و بدل اجازة وذلك عن المده من 17/9/2017 حتى 23/11/2019 من شركة العالمية للتحصيل على النحو المبين اعلاه ؛ وتم استلام المستحقات نقدا ولم يعد لي حق المطالبه او الرجوع على شركة العالمية للتحصيل بأى حال من الاحوال وبناء على ذلك اوقع بالاستلام
H36: توقيع المستلم
H37: الاسم | I37: ………………………………………….
H38: التوقيع | I38: ………………………………………….
H39: التاريخ | I39: ………………………………………….
